[Event "Titled Tuesday Blitz August 17 2021"]
[White "Rottenwohrer Suarez, Juan"]
[Black "Paravyan, David"]
[WhiteFideId "32068182"]
[BlackFideId "4194985"]
[WhiteElo "2555"]
[BlackElo "2803"]
[Result "0-1"]
[Round "03"]
[TimeControl "180+1"]
[Date "2021.08.17"]
[WhiteClock "0:00:02"]
[BlackClock "0:01:42"]

1. d4 {[%clk 0:03:00]}  f5 {[%clk 0:03:00]} 2. Nf3 {[%clk 0:02:58]}  Nf6 {[%clk 0:03:00]} 3. c4 {[%clk 0:02:57]}  e6 {[%clk 0:02:59]} 4. g3 {[%clk 0:02:56]}  d5 {[%clk 0:02:54]} 5. Bg2 {[%clk 0:02:55]}  Bd6 {[%clk 0:02:54]} 6. O-O {[%clk 0:02:54]}  O-O {[%clk 0:02:54]} 7. Nc3 {[%clk 0:02:54]}  c6 {[%clk 0:02:53]} 8. Qc2 {[%clk 0:02:54]}  Ne4 {[%clk 0:02:52]} 9. Rb1 {[%clk 0:02:54]}  a5 {[%clk 0:02:52]} 10. a3 {[%clk 0:02:52]}  b6 {[%clk 0:02:47]} 11. b4 {[%clk 0:02:46]}  axb4 {[%clk 0:02:47]} 12. axb4 {[%clk 0:02:47]}  Bb7 {[%clk 0:02:46]} 13. c5 {[%clk 0:02:44]}  Bc7 {[%clk 0:02:42]} 14. Bf4 {[%clk 0:02:39]}  Bxf4 {[%clk 0:02:40]} 15. gxf4 {[%clk 0:02:39]}  Nd7 {[%clk 0:02:33]} 16. Ne5 {[%clk 0:02:38]}  Nxe5 {[%clk 0:02:32]} 17. fxe5 {[%clk 0:02:36]}  Ra3 {[%clk 0:02:23]} 18. Na4 {[%clk 0:02:24]}  b5 {[%clk 0:02:17]} 19. Nb2 {[%clk 0:02:16]}  Qh4 {[%clk 0:02:10]} 20. Nd3 {[%clk 0:02:11]}  Rfa8 {[%clk 0:02:06]} 21. Qc1 {[%clk 0:01:40]}  Nc3 {[%clk 0:01:57]} 22. Rb2 {[%clk 0:01:39]}  Nxe2+ {[%clk 0:01:57]} 23. Rxe2 {[%clk 0:01:36]}  Rxd3 {[%clk 0:01:58]} 24. Qb1 {[%clk 0:01:25]}  Qxd4 {[%clk 0:01:57]} 25. Ra2 {[%clk 0:01:25]}  Ra4 {[%clk 0:01:54]} 26. Rxa4 {[%clk 0:01:04]}  bxa4 {[%clk 0:01:55]} 27. Qc2 {[%clk 0:01:04]}  Rb3 {[%clk 0:01:49]} 28. Qe2 {[%clk 0:00:27]}  g6 {[%clk 0:01:47]} 29. Rd1 {[%clk 0:00:13]}  Qxb4 {[%clk 0:01:47]} 30. Bxd5 {[%clk 0:00:05]}  cxd5 {[%clk 0:01:42]} 31. c6 {[%clk 0:00:05]}  Bxc6 {[%clk 0:01:42]} 32. Qa6 {[%clk 0:00:04]}  Qb7 {[%clk 0:01:42]} 33. Qa5 {[%clk 0:00:03]}  Qb6 {[%clk 0:01:42]} 34. Qd2 {[%clk 0:00:02]}  Rb1 {[%clk 0:01:42]} 0-1


[Site "https://www.chess.com"]

[Event "Titled Tuesday Blitz August 17 2021"]
[White "Shahade, Gregory"]
[Black "Hansch, Karsten"]
[WhiteFideId "2009064"]
[BlackFideId "24692239"]
[WhiteElo "2705"]
[BlackElo "2358"]
[Result "1-0"]
[Round "03"]
[TimeControl "180+1"]
[Date "2021.08.17"]
[WhiteClock "0:00:49"]
[BlackClock "0:00:52"]

1. e4 {[%clk 0:03:00]}  c6 {[%clk 0:02:57]} 2. Nc3 {[%clk 0:02:59]}  d5 {[%clk 0:02:57]} 3. Nf3 {[%clk 0:03:00]}  g6 {[%clk 0:02:56]} 4. d4 {[%clk 0:02:57]}  Bg7 {[%clk 0:02:56]} 5. h3 {[%clk 0:02:57]}  dxe4 {[%clk 0:02:56]} 6. Nxe4 {[%clk 0:02:57]}  Nf6 {[%clk 0:02:56]} 7. Nxf6+ {[%clk 0:02:47]}  Bxf6 {[%clk 0:02:56]} 8. Bh6 {[%clk 0:02:37]}  Bf5 {[%clk 0:02:48]} 9. Bc4 {[%clk 0:02:31]}  Qb6 {[%clk 0:02:32]} 10. O-O {[%clk 0:02:27]}  Nd7 {[%clk 0:02:28]} 11. g4 {[%clk 0:02:18]}  Be4 {[%clk 0:02:25]} 12. g5 {[%clk 0:02:19]}  Bxf3 {[%clk 0:01:59]} 13. Qxf3 {[%clk 0:02:20]}  Qxd4 {[%clk 0:01:59]} 14. Qb3 {[%clk 0:01:57]}  O-O-O {[%clk 0:01:45]} 15. gxf6 {[%clk 0:01:52]}  Nxf6 {[%clk 0:01:40]} 16. Bxf7 {[%clk 0:01:45]}  Ne4 {[%clk 0:01:33]} 17. Qe6+ {[%clk 0:01:34]}  Kb8 {[%clk 0:01:30]} 18. Bf4+ {[%clk 0:01:33]}  Nd6 {[%clk 0:01:28]} 19. Be5 {[%clk 0:01:30]}  Qh4 {[%clk 0:00:55]} 20. Bxh8 {[%clk 0:01:26]}  Nf5 {[%clk 0:00:54]} 21. Be5+ {[%clk 0:01:05]}  Ka8 {[%clk 0:00:54]} 22. Rad1 {[%clk 0:01:04]}  Rf8 {[%clk 0:00:52]} 23. Rd3 {[%clk 0:00:49]} 1-0


[Site "https://www.chess.com"]

[Event "Titled Tuesday Blitz August 17 2021"]
[White "Shtyka, Sergey"]
[Black "Rodriguez Hernandez, Luis Daniel"]
[WhiteFideId "4138465"]
[BlackFideId "3506770"]
[WhiteElo "2064"]
[BlackElo "2133"]
[Result "1-0"]
[Round "03"]
[TimeControl "180+1"]
[Date "2021.08.17"]
[WhiteClock "0:00:10"]
[BlackClock "0:00:01"]

1. e4 {[%clk 0:02:51]}  e5 {[%clk 0:02:59]} 2. Nf3 {[%clk 0:02:50]}  Nc6 {[%clk 0:03:00]} 3. Nc3 {[%clk 0:02:50]}  Nf6 {[%clk 0:03:00]} 4. Bb5 {[%clk 0:02:50]}  Bb4 {[%clk 0:02:59]} 5. O-O {[%clk 0:02:49]}  O-O {[%clk 0:03:00]} 6. d3 {[%clk 0:02:49]}  Bxc3 {[%clk 0:03:01]} 7. bxc3 {[%clk 0:02:49]}  Qe7 {[%clk 0:03:01]} 8. Bg5 {[%clk 0:02:48]}  Nd8 {[%clk 0:03:02]} 9. h3 {[%clk 0:02:29]}  c6 {[%clk 0:02:59]} 10. Bc4 {[%clk 0:02:28]}  Ne6 {[%clk 0:02:59]} 11. Bh4 {[%clk 0:02:27]}  Nf4 {[%clk 0:02:58]} 12. Bb3 {[%clk 0:02:16]}  d6 {[%clk 0:02:52]} 13. Re1 {[%clk 0:02:12]}  h6 {[%clk 0:02:37]} 14. d4 {[%clk 0:02:10]}  Bxh3 {[%clk 0:02:29]} 15. gxh3 {[%clk 0:02:05]}  Qd8 {[%clk 0:02:29]} 16. Bg3 {[%clk 0:01:25]}  N6h5 {[%clk 0:02:28]} 17. Nh2 {[%clk 0:01:10]}  Nxh3+ {[%clk 0:02:22]} 18. Kf1 {[%clk 0:01:06]}  N3f4 {[%clk 0:01:18]} 19. dxe5 {[%clk 0:01:01]}  Qg5 {[%clk 0:00:55]} 20. Qg4 {[%clk 0:00:55]}  Qxe5 {[%clk 0:00:54]} 21. Nf3 {[%clk 0:00:44]}  Qf6 {[%clk 0:00:44]} 22. e5 {[%clk 0:00:42]}  dxe5 {[%clk 0:00:43]} 23. Rxe5 {[%clk 0:00:41]}  Nxg3+ {[%clk 0:00:38]} 24. fxg3 {[%clk 0:00:39]}  Ng6 {[%clk 0:00:39]} 25. Rf5 {[%clk 0:00:34]}  Qxc3 {[%clk 0:00:39]} 26. Re1 {[%clk 0:00:28]}  Nh8 {[%clk 0:00:19]} 27. Re7 {[%clk 0:00:23]}  Rae8 {[%clk 0:00:17]} 28. Qe4 {[%clk 0:00:11]}  Rxe7 {[%clk 0:00:14]} 29. Qxe7 {[%clk 0:00:11]}  b5 {[%clk 0:00:06]} 30. Ne5 {[%clk 0:00:11]}  Qd4 {[%clk 0:00:01]} 31. Bc4 {[%clk 0:00:10]} 1-0


[Site "https://www.chess.com"]

[Event "Titled Tuesday Blitz August 17 2021"]
[White "Silva, Miguel Antonio Neto"]
[Black "Obregon, Andres Carlos"]
[WhiteFideId "1911929"]
[BlackFideId "111724"]
[WhiteElo "2283"]
[BlackElo "2572"]
[Result "0-1"]
[Round "03"]
[TimeControl "180+1"]
[Date "2021.08.17"]
[WhiteClock "0:01:03"]
[BlackClock "0:01:36"]

1. e4 {[%clk 0:03:00]}  d6 {[%clk 0:02:58]} 2. d4 {[%clk 0:02:59]}  g6 {[%clk 0:02:58]} 3. Nf3 {[%clk 0:02:54]}  Bg7 {[%clk 0:02:58]} 4. Be2 {[%clk 0:02:50]}  Nf6 {[%clk 0:02:58]} 5. Nc3 {[%clk 0:02:48]}  O-O {[%clk 0:02:57]} 6. O-O {[%clk 0:02:48]}  Nc6 {[%clk 0:02:57]} 7. h3 {[%clk 0:02:46]}  a6 {[%clk 0:02:56]} 8. Be3 {[%clk 0:02:46]}  e6 {[%clk 0:02:55]} 9. d5 {[%clk 0:02:45]}  Ne7 {[%clk 0:02:54]} 10. dxe6 {[%clk 0:02:42]}  Bxe6 {[%clk 0:02:52]} 11. Nd4 {[%clk 0:02:34]}  Bd7 {[%clk 0:02:52]} 12. f4 {[%clk 0:02:32]}  c5 {[%clk 0:02:33]} 13. Nb3 {[%clk 0:02:25]}  Bc6 {[%clk 0:02:33]} 14. Bf3 {[%clk 0:02:25]}  Qc7 {[%clk 0:02:22]} 15. Qd2 {[%clk 0:02:17]}  Rad8 {[%clk 0:02:21]} 16. Rad1 {[%clk 0:02:17]}  b6 {[%clk 0:02:15]} 17. Rfe1 {[%clk 0:02:14]}  d5 {[%clk 0:02:08]} 18. e5 {[%clk 0:01:58]}  d4 {[%clk 0:02:07]} 19. exf6 {[%clk 0:01:45]}  Bxf6 {[%clk 0:02:08]} 20. Bxc6 {[%clk 0:01:37]}  dxc3 {[%clk 0:02:00]} 21. Qe2 {[%clk 0:01:30]}  Qxc6 {[%clk 0:01:55]} 22. bxc3 {[%clk 0:01:28]}  Bxc3 {[%clk 0:01:49]} 23. Rxd8 {[%clk 0:01:27]}  Rxd8 {[%clk 0:01:49]} 24. Rd1 {[%clk 0:01:28]}  Rxd1+ {[%clk 0:01:48]} 25. Qxd1 {[%clk 0:01:28]}  Qd5 {[%clk 0:01:46]} 26. Qd3 {[%clk 0:01:19]}  Qxd3 {[%clk 0:01:40]} 27. cxd3 {[%clk 0:01:19]}  Nd5 {[%clk 0:01:41]} 28. Kf2 {[%clk 0:01:12]}  Nb4 {[%clk 0:01:41]} 29. Nc1 {[%clk 0:01:07]}  Bb2 {[%clk 0:01:37]} 30. Ke2 {[%clk 0:01:03]}  Bxc1 {[%clk 0:01:37]} 31. Bxc1 {[%clk 0:01:03]}  Nxa2 {[%clk 0:01:37]} 32. Be3 {[%clk 0:01:03]}  Nb4 {[%clk 0:01:36]} 33. d4 {[%clk 0:01:03]}  c4 {[%clk 0:01:36]} 0-1


[Site "https://www.chess.com"]

[Event "Titled Tuesday Blitz August 17 2021"]
[White "Sliwicki, Damian"]
[Black "Can, Melih Kaan"]
[WhiteFideId "1127128"]
[BlackFideId "6317383"]
[WhiteElo "2142"]
[BlackElo "2049"]
[Result "0-1"]
[Round "03"]
[TimeControl "180+1"]
[Date "2021.08.18"]
[WhiteClock "0:00:22"]
[BlackClock "0:00:08"]

1. d4 {[%clk 0:03:00]}  d5 {[%clk 0:02:55]} 2. Nf3 {[%clk 0:02:53]}  Nf6 {[%clk 0:02:54]} 3. c4 {[%clk 0:02:47]}  c6 {[%clk 0:02:53]} 4. Nc3 {[%clk 0:02:46]}  a6 {[%clk 0:02:52]} 5. cxd5 {[%clk 0:02:40]}  cxd5 {[%clk 0:02:52]} 6. g3 {[%clk 0:02:35]}  e6 {[%clk 0:02:51]} 7. Bg2 {[%clk 0:02:35]}  b5 {[%clk 0:02:51]} 8. O-O {[%clk 0:02:31]}  Bb7 {[%clk 0:02:52]} 9. Bf4 {[%clk 0:02:20]}  Nbd7 {[%clk 0:02:52]} 10. Rc1 {[%clk 0:02:19]}  Be7 {[%clk 0:02:51]} 11. Ne5 {[%clk 0:02:09]}  O-O {[%clk 0:02:48]} 12. a3 {[%clk 0:02:04]}  Rc8 {[%clk 0:02:30]} 13. Re1 {[%clk 0:01:51]}  Nb6 {[%clk 0:02:28]} 14. Qd3 {[%clk 0:01:39]}  Nc4 {[%clk 0:02:27]} 15. Qb1 {[%clk 0:01:27]}  Qb6 {[%clk 0:02:18]} 16. Bg5 {[%clk 0:01:22]}  h6 {[%clk 0:02:16]} 17. Bxf6 {[%clk 0:01:21]}  Bxf6 {[%clk 0:02:16]} 18. Nd7 {[%clk 0:01:20]}  Qd6 {[%clk 0:02:16]} 19. Nxf8 {[%clk 0:01:19]}  Qxf8 {[%clk 0:02:17]} 20. e3 {[%clk 0:01:16]}  Rc7 {[%clk 0:02:16]} 21. Ne2 {[%clk 0:00:50]}  Qc8 {[%clk 0:02:14]} 22. b3 {[%clk 0:00:36]}  Nxa3 {[%clk 0:02:02]} 23. Rxc7 {[%clk 0:00:37]}  Qxc7 {[%clk 0:02:00]} 24. Qc1 {[%clk 0:00:38]}  Qd6 {[%clk 0:01:55]} 25. Nf4 {[%clk 0:00:26]}  b4 {[%clk 0:01:49]} 26. Nd3 {[%clk 0:00:26]}  Nb5 {[%clk 0:01:45]} 27. Nc5 {[%clk 0:00:26]}  Bc8 {[%clk 0:01:24]} 28. Ne4 {[%clk 0:00:23]}  Qd8 {[%clk 0:01:06]} 29. Nxf6+ {[%clk 0:00:21]}  gxf6 {[%clk 0:01:05]} 30. Qc5 {[%clk 0:00:20]}  Qf8 {[%clk 0:00:56]} 31. Rc1 {[%clk 0:00:18]}  Nc3 {[%clk 0:00:43]} 32. Bf1 {[%clk 0:00:18]}  Bb7 {[%clk 0:00:20]} 33. Ra1 {[%clk 0:00:17]}  Kg7 {[%clk 0:00:11]} 34. Qxf8+ {[%clk 0:00:16]}  Kxf8 {[%clk 0:00:12]} 35. Bxa6 {[%clk 0:00:16]}  Bc6 {[%clk 0:00:12]} 36. Bd3 {[%clk 0:00:15]}  Ke7 {[%clk 0:00:11]} 37. Ra6 {[%clk 0:00:15]}  Kd7 {[%clk 0:00:10]} 38. Rb6 {[%clk 0:00:14]}  Na2 {[%clk 0:00:07]} 39. Bb1 {[%clk 0:00:12]}  Nc3 {[%clk 0:00:06]} 40. Bh7 {[%clk 0:00:13]}  Na2 {[%clk 0:00:06]} 41. Kf1 {[%clk 0:00:12]}  Nc1 {[%clk 0:00:06]} 42. Rxb4 {[%clk 0:00:10]}  f5 {[%clk 0:00:03]} 43. Ke1 {[%clk 0:00:09]}  Nd3+ {[%clk 0:00:03]} 44. Kd2 {[%clk 0:00:09]}  Nxb4 {[%clk 0:00:04]} 45. Kc3 {[%clk 0:00:09]}  Na6 {[%clk 0:00:04]} 46. b4 {[%clk 0:00:09]}  Nc7 {[%clk 0:00:05]} 47. h3 {[%clk 0:00:09]}  Ke7 {[%clk 0:00:05]} 48. g4 {[%clk 0:00:09]}  fxg4 {[%clk 0:00:05]} 49. hxg4 {[%clk 0:00:10]}  Kf8 {[%clk 0:00:05]} 50. f4 {[%clk 0:00:11]}  Kg7 {[%clk 0:00:06]} 51. Bd3 {[%clk 0:00:11]}  Nb5+ {[%clk 0:00:06]} 52. Kd2 {[%clk 0:00:08]}  Kf6 {[%clk 0:00:05]} 53. Ke2 {[%clk 0:00:08]}  Nd6 {[%clk 0:00:06]} 54. Kf3 {[%clk 0:00:08]}  Bb5 {[%clk 0:00:06]} 55. Bc2 {[%clk 0:00:08]}  Bc4 {[%clk 0:00:06]} 56. Bb1 {[%clk 0:00:07]}  Nb5 {[%clk 0:00:06]} 57. Kg3 {[%clk 0:00:07]}  Nc3 {[%clk 0:00:06]} 58. Bc2 {[%clk 0:00:07]}  Na2 {[%clk 0:00:06]} 59. Kh4 {[%clk 0:00:07]}  Nxb4 {[%clk 0:00:06]} 60. g5+ {[%clk 0:00:08]}  hxg5+ {[%clk 0:00:06]} 61. fxg5+ {[%clk 0:00:09]}  Kg7 {[%clk 0:00:05]} 62. Bb1 {[%clk 0:00:09]}  Bd3 {[%clk 0:00:03]} 63. Bxd3 {[%clk 0:00:09]}  Nxd3 {[%clk 0:00:04]} 64. Kg4 {[%clk 0:00:09]}  Kg6 {[%clk 0:00:04]} 65. Kh4 {[%clk 0:00:08]}  Nf2 {[%clk 0:00:04]} 66. Kg3 {[%clk 0:00:08]}  Ne4+ {[%clk 0:00:05]} 67. Kf4 {[%clk 0:00:09]}  Nxg5 {[%clk 0:00:05]} 68. Ke5 {[%clk 0:00:10]}  f6+ {[%clk 0:00:05]} 69. Kf4 {[%clk 0:00:11]}  Ne4 {[%clk 0:00:04]} 70. Kg4 {[%clk 0:00:11]}  f5+ {[%clk 0:00:04]} 71. Kf4 {[%clk 0:00:12]}  Kf6 {[%clk 0:00:05]} 72. Kf3 {[%clk 0:00:12]}  e5 {[%clk 0:00:06]} 73. dxe5+ {[%clk 0:00:13]}  Kxe5 {[%clk 0:00:07]} 74. Ke2 {[%clk 0:00:13]}  Ng5 {[%clk 0:00:06]} 75. Kf2 {[%clk 0:00:13]}  Ke4 {[%clk 0:00:07]} 76. Ke2 {[%clk 0:00:13]}  Nf7 {[%clk 0:00:08]} 77. Kf2 {[%clk 0:00:14]}  Nd6 {[%clk 0:00:09]} 78. Ke2 {[%clk 0:00:14]}  Nc4 {[%clk 0:00:09]} 79. Kf1 {[%clk 0:00:15]}  Nxe3+ {[%clk 0:00:10]} 80. Ke2 {[%clk 0:00:15]}  Nc4 {[%clk 0:00:10]} 81. Ke1 {[%clk 0:00:16]}  Nb6 {[%clk 0:00:11]} 82. Ke2 {[%clk 0:00:17]}  d4 {[%clk 0:00:12]} 83. Ke1 {[%clk 0:00:18]}  f4 {[%clk 0:00:12]} 84. Ke2 {[%clk 0:00:19]}  f3+ {[%clk 0:00:13]} 85. Ke1 {[%clk 0:00:20]}  Ke3 {[%clk 0:00:13]} 86. Kf1 {[%clk 0:00:20]}  d3 {[%clk 0:00:13]} 87. Ke1 {[%clk 0:00:21]}  Nc8 {[%clk 0:00:10]} 88. Kf1 {[%clk 0:00:22]}  d2 {[%clk 0:00:11]} 89. Kg1 {[%clk 0:00:22]}  d1=Q+ {[%clk 0:00:10]} 90. Kh2 {[%clk 0:00:22]}  Kf2 {[%clk 0:00:08]} 91. Kh3 {[%clk 0:00:22]}  Qg1 {[%clk 0:00:07]} 92. Kh4 {[%clk 0:00:23]}  Qg6 {[%clk 0:00:07]} 93. Kh3 {[%clk 0:00:22]}  Qh5# {[%clk 0:00:08]} 0-1


[Site "https://www.chess.com"]

[Event "Titled Tuesday Blitz August 17 2021"]
[White "Sokolovsky, Yahli"]
[Black "gurelediz"]
[WhiteFideId "2820242"]
[WhiteElo "1770"]
[BlackElo "2699"]
[Result "0-1"]
[Round "03"]
[TimeControl "180+1"]
[Date "2021.08.17"]
[WhiteClock "0:00:07"]
[BlackClock "0:01:43"]

1. b3 {[%clk 0:03:00]}  e5 {[%clk 0:02:58]} 2. Bb2 {[%clk 0:03:01]}  Nc6 {[%clk 0:02:59]} 3. e3 {[%clk 0:03:01]}  Nf6 {[%clk 0:02:58]} 4. Nf3 {[%clk 0:03:02]}  e4 {[%clk 0:02:57]} 5. Nd4 {[%clk 0:03:02]}  Nxd4 {[%clk 0:02:58]} 6. exd4 {[%clk 0:03:03]}  d5 {[%clk 0:02:58]} 7. d3 {[%clk 0:03:04]}  Bd6 {[%clk 0:02:56]} 8. dxe4 {[%clk 0:03:04]}  Nxe4 {[%clk 0:02:56]} 9. Nd2 {[%clk 0:02:59]}  Nxd2 {[%clk 0:02:55]} 10. Qxd2 {[%clk 0:02:58]}  O-O {[%clk 0:02:56]} 11. O-O-O {[%clk 0:02:58]}  a5 {[%clk 0:02:55]} 12. a4 {[%clk 0:02:57]}  c6 {[%clk 0:02:55]} 13. Kb1 {[%clk 0:02:53]}  b5 {[%clk 0:02:55]} 14. axb5 {[%clk 0:02:49]}  a4 {[%clk 0:02:55]} 15. bxc6 {[%clk 0:02:44]}  Qb6 {[%clk 0:02:51]} 16. Bd3 {[%clk 0:01:39]}  axb3 {[%clk 0:02:45]} 17. cxb3 {[%clk 0:01:15]}  Qxb3 {[%clk 0:02:46]} 18. Qc3 {[%clk 0:01:14]}  Qa2+ {[%clk 0:02:32]} 19. Kc2 {[%clk 0:01:13]}  Qa4+ {[%clk 0:02:32]} 20. Kb1 {[%clk 0:01:05]}  Be6 {[%clk 0:02:15]} 21. Rc1 {[%clk 0:00:56]}  Rfb8 {[%clk 0:01:56]} 22. c7 {[%clk 0:00:50]}  Bxc7 {[%clk 0:01:55]} 23. g3 {[%clk 0:00:41]}  Rb3 {[%clk 0:01:43]} 24. Qxb3 {[%clk 0:00:09]}  Qxb3 {[%clk 0:01:44]} 25. Bc2 {[%clk 0:00:07]}  Qa2# {[%clk 0:01:43]} 0-1


[Site "https://www.chess.com"]

[Event "Titled Tuesday Blitz August 17 2021"]
[White "Steinberg, Nitzan"]
[Black "Sadovsky, Artem"]
[WhiteFideId "2801795"]
[BlackFideId "4155840"]
[WhiteElo "2440"]
[BlackElo "2442"]
[Result "1/2-1/2"]
[Round "03"]
[TimeControl "180+1"]
[Date "2021.08.17"]
[WhiteClock "0:00:26"]
[BlackClock "0:00:08"]

1. e4 {[%clk 0:03:00]}  g6 {[%clk 0:02:56]} 2. d4 {[%clk 0:03:00]}  Bg7 {[%clk 0:02:57]} 3. Nc3 {[%clk 0:03:01]}  c6 {[%clk 0:02:57]} 4. Nf3 {[%clk 0:03:00]}  d5 {[%clk 0:02:58]} 5. h3 {[%clk 0:03:00]}  dxe4 {[%clk 0:02:58]} 6. Nxe4 {[%clk 0:03:00]}  Nd7 {[%clk 0:02:58]} 7. Bc4 {[%clk 0:02:55]}  Ngf6 {[%clk 0:02:59]} 8. Nc3 {[%clk 0:02:49]}  O-O {[%clk 0:02:58]} 9. O-O {[%clk 0:02:49]}  b5 {[%clk 0:02:47]} 10. Bd3 {[%clk 0:02:45]}  a5 {[%clk 0:02:47]} 11. Re1 {[%clk 0:02:42]}  Bb7 {[%clk 0:02:33]} 12. Bg5 {[%clk 0:02:41]}  Re8 {[%clk 0:02:30]} 13. Qe2 {[%clk 0:02:28]}  a4 {[%clk 0:02:27]} 14. a3 {[%clk 0:02:27]}  Qc7 {[%clk 0:02:23]} 15. Rad1 {[%clk 0:02:23]}  Rad8 {[%clk 0:02:13]} 16. Qe3 {[%clk 0:02:10]}  Nb6 {[%clk 0:02:02]} 17. Bf4 {[%clk 0:01:56]}  Qc8 {[%clk 0:02:02]} 18. Be5 {[%clk 0:01:52]}  Nbd5 {[%clk 0:01:33]} 19. Nxd5 {[%clk 0:01:51]}  Nxd5 {[%clk 0:01:33]} 20. Qc1 {[%clk 0:01:47]}  Qa8 {[%clk 0:00:30]} 21. Bxg7 {[%clk 0:01:41]}  Kxg7 {[%clk 0:00:31]} 22. Ne5 {[%clk 0:01:41]}  Nf6 {[%clk 0:00:27]} 23. Bf1 {[%clk 0:01:38]}  Rd5 {[%clk 0:00:20]} 24. c3 {[%clk 0:01:31]}  Red8 {[%clk 0:00:20]} 25. Nd3 {[%clk 0:01:31]}  Re8 {[%clk 0:00:12]} 26. Nf4 {[%clk 0:01:29]}  Rd7 {[%clk 0:00:10]} 27. h4 {[%clk 0:01:30]}  h6 {[%clk 0:00:10]} 28. Nd3 {[%clk 0:01:28]}  Rc7 {[%clk 0:00:09]} 29. Qf4 {[%clk 0:01:27]}  Qd8 {[%clk 0:00:08]} 30. Nc5 {[%clk 0:01:26]}  Bc8 {[%clk 0:00:08]} 31. g3 {[%clk 0:01:26]}  Qd6 {[%clk 0:00:09]} 32. Re5 {[%clk 0:01:23]}  Ng4 {[%clk 0:00:08]} 33. Ne4 {[%clk 0:01:19]}  Qd8 {[%clk 0:00:06]} 34. Rc5 {[%clk 0:01:18]}  e5 {[%clk 0:00:05]} 35. Qc1 {[%clk 0:01:12]}  Qe7 {[%clk 0:00:04]} 36. dxe5 {[%clk 0:01:05]}  Nxe5 {[%clk 0:00:05]} 37. Nd6 {[%clk 0:01:02]}  Rd8 {[%clk 0:00:04]} 38. Qe3 {[%clk 0:00:34]}  Rxd6 {[%clk 0:00:02]} 39. Rxe5 {[%clk 0:00:35]}  Qf6 {[%clk 0:00:02]} 40. Rxd6 {[%clk 0:00:25]}  Qxd6 {[%clk 0:00:03]} 41. h5 {[%clk 0:00:25]}  Qf6 {[%clk 0:00:02]} 42. hxg6 {[%clk 0:00:25]}  fxg6 {[%clk 0:00:03]} 43. Re4 {[%clk 0:00:22]}  Rf7 {[%clk 0:00:03]} 44. Rf4 {[%clk 0:00:22]}  Qd6 {[%clk 0:00:03]} 45. Rxf7+ {[%clk 0:00:22]}  Kxf7 {[%clk 0:00:04]} 46. Qxh6 {[%clk 0:00:21]}  Bf5 {[%clk 0:00:03]} 47. Qh7+ {[%clk 0:00:19]}  Kf8 {[%clk 0:00:03]} 48. Qh8+ {[%clk 0:00:19]}  Kf7 {[%clk 0:00:03]} 49. Qd4 {[%clk 0:00:18]}  Qxd4 {[%clk 0:00:01]} 50. cxd4 {[%clk 0:00:19]}  Ke7 {[%clk 0:00:02]} 51. Bg2 {[%clk 0:00:19]}  Kd6 {[%clk 0:00:02]} 52. Kf1 {[%clk 0:00:19]}  c5 {[%clk 0:00:02]} 53. dxc5+ {[%clk 0:00:20]}  Kxc5 {[%clk 0:00:03]} 54. Ke1 {[%clk 0:00:21]}  Kd4 {[%clk 0:00:02]} 55. Kd2 {[%clk 0:00:21]}  Kc4 {[%clk 0:00:02]} 56. Bf1+ {[%clk 0:00:21]}  Kb3 {[%clk 0:00:03]} 57. Bxb5 {[%clk 0:00:21]}  Kxb2 {[%clk 0:00:03]} 58. Bxa4 {[%clk 0:00:21]}  Kxa3 {[%clk 0:00:04]} 59. Be8 {[%clk 0:00:21]}  Kb4 {[%clk 0:00:05]} 60. Ke3 {[%clk 0:00:21]}  g5 {[%clk 0:00:04]} 61. Kd4 {[%clk 0:00:22]}  Bc8 {[%clk 0:00:02]} 62. Ke5 {[%clk 0:00:22]}  Kc5 {[%clk 0:00:03]} 63. Kf6 {[%clk 0:00:22]}  g4 {[%clk 0:00:03]} 64. Bh5 {[%clk 0:00:22]}  Kd4 {[%clk 0:00:02]} 65. Kg5 {[%clk 0:00:22]}  Ke5 {[%clk 0:00:02]} 66. Bxg4 {[%clk 0:00:23]}  Bb7 {[%clk 0:00:02]} 67. f4+ {[%clk 0:00:23]}  Kd6 {[%clk 0:00:03]} 68. Be2 {[%clk 0:00:22]}  Ke7 {[%clk 0:00:04]} 69. f5 {[%clk 0:00:22]}  Kf8 {[%clk 0:00:04]} 70. Kf4 {[%clk 0:00:22]}  Ba6 {[%clk 0:00:05]} 71. g4 {[%clk 0:00:23]}  Bxe2 {[%clk 0:00:05]} 72. g5 {[%clk 0:00:23]}  Bc4 {[%clk 0:00:06]} 73. g6 {[%clk 0:00:24]}  Kg7 {[%clk 0:00:06]} 74. Kg5 {[%clk 0:00:24]}  Kg8 {[%clk 0:00:06]} 75. f6 {[%clk 0:00:25]}  Bb3 {[%clk 0:00:07]} 76. f7+ {[%clk 0:00:25]}  Bxf7 {[%clk 0:00:07]} 77. gxf7+ {[%clk 0:00:26]}  Kxf7 {[%clk 0:00:08]} 1/2-1/2


[Site "https://www.chess.com"]